[Event "WSCC 65 Open 2017"]
[Site "?"]
[Date "2017.11.12"]
[Round "6"]
[White "Lisenko, Alexander V"]
[Black "Hess, Christian"]
[Result "0-1"]
[ECO "A05"]
[WhiteElo "2372"]
[BlackElo "2236"]
[PlyCount "130"]
[EventDate "2017.??.??"]
[EventType "swiss"]
[EventCountry "ITA"]
[SourceTitle "Acqui Terme"]
[TimeControl "40/5400+30:1800+30"]
[WhiteClock "0:24:52"]
[BlackClock "0:14:31"]

1. Nf3 {[%emt 0:00:00]} Nf6 {[%emt 0:00:30]} 2. c4 {[%emt 0:00:00]} c6 {[%emt 0:00:14]} 3. b3 g6 {[%emt 0:00:49]} 4. Bb2 {[%emt 0:00:00]} Bg7 {[%emt 0:00:04]} 5. g3 {[%emt 0:01:22]} O-O {[%emt 0:00:39]} 6. Bg2 d6 7. d4 {[%emt 0:00:35]} Nbd7 {[%emt 0:02:15]} 8. O-O {[%emt 0:00:59]} Re8 9. Re1 {[%emt 0:11:04]} a5 {[%emt 0:11:50]} 10. e4 {[%emt 0:03:30]} e5 {[%emt 0:02:23]} 11. dxe5 {[%emt 0:14:53]} Ng4 {[%emt 0:04:16]} 12. Nc3 {[%emt 0:15:09]} Ngxe5 {[%emt 0:14:40]} 13. Na4 {[%emt 0:06:52]} Nxf3+ {[%emt 0:05:50]} 14. Bxf3 {[%emt 0:01:32]} Bxb2 {[%emt 0:07:20]} 15. Nxb2 {[%emt 0:00:04]} Qf6 {[%emt 0:00:23]} 16. Nd3 {[%emt 0:06:22]} Ne5 {[%emt 0:00:33]} 17. Nxe5 {[%emt 0:02:10]} dxe5 {[%emt 0:01:08]} 18. Re3 {[%emt 0:03:19]} Rd8 {[%emt 0:00:14]} 19. Rd3 {[%emt 0:00:13]} Be6 {[%emt 0:03:42]} 20. c5 {[%emt 0:02:45]} a4 {[%emt 0:05:23]} 21. Be2 {[%emt 0:08:33]} Rxd3 {[%emt 0:13:22]} 22. Bxd3 {[%emt 0:01:40]} Rd8 {[%emt 0:00:56]} 23. Qe2 {[%emt 0:03:00]} axb3 {[%emt 0:02:47]} 24. axb3 {[%emt 0:00:01]} Bxb3 {[%emt 0:00:38]} 25. Rb1 {[%emt 0:00:23]} Qe6 {[%emt 0:07:11]} 26. Qe3 {[%emt 0:00:20]} Rd4 {[%emt 0:01:16]} 27. f4 {[%emt 0:02:58]} Bc4 {[%emt 0:05:59]} 28. Bc2 {[%emt 0:05:39]} Qe7 {[%emt 0:01:12]} 29. f5 {[%emt 0:01:21]} Qxc5 {[%emt 0:00:52]} 30. Kg2 {[%emt 0:01:42]} Bf1+ {[%emt 0:01:13]} 31. Kxf1 {[%emt 0:02:56]} Qxc2 {[%emt 0:01:56]} 32. Ra1 {[%emt 0:00:08]} Qxe4 {[%emt 0:02:52]} 33. Qxe4 {[%emt 0:00:39]} Rxe4 {[%emt 0:00:01]} 34. f6 {[%emt 0:00:07]} h5 {[%emt 0:00:29]} 35. Ra8+ {[%emt 0:00:04]} Kh7 {[%emt 0:00:04]} 36. Rf8 {[%emt 0:00:06]} g5 {[%emt 0:00:21]} 37. Rxf7+ {[%emt 0:01:18]} Kg6 {[%emt 0:00:10]} 38. Rxb7 {[%emt 0:00:02]} Kxf6 {[%emt 0:00:11]} 39. Kf2 {[%emt 0:00:24]} Kf5 {[%emt 0:01:08]} 40. h3 {[%emt 0:01:15]} Rc4 {[%emt 0:30:34]} 41. Rf7+ {[%emt 0:32:06]} Ke4 {[%emt 0:00:20]} 42. g4 {[%emt 0:00:14]} hxg4 {[%emt 0:04:12]} 43. hxg4 {[%emt 0:00:35]} Kd3 {[%emt 0:01:23]} 44. Rd7+ {[%emt 0:04:51]} Rd4 {[%emt 0:00:00]} 45. Rc7 {[%emt 0:00:00]} e4 {[%emt 0:00:00]} 46. Rxc6 {[%emt 0:00:00]} e3+ {[%emt 0:00:00]} 47. Ke1 {[%emt 0:00:00]} Rxg4 {[%emt 0:00:00]} 48. Rd6+ {[%emt 0:00:00]} Rd4 {[%emt 0:00:00]} 49. Rg6 {[%emt 0:00:00]} g4 {[%emt 0:00:00]} 50. Rg7 {[%emt 0:00:00]} Ra4 {[%emt 0:00:00]} 51. Rd7+ {[%emt 0:00:00]} Ke4 {[%emt 0:00:00]} 52. Ke2 {[%emt 0:00:00]} Ra2+ {[%emt 0:00:00]} 53. Kf1 {[%emt 0:00:00]} Kf3 {[%emt 0:00:00]} 54. Rf7+ {[%emt 0:00:00]} Kg3 {[%emt 0:00:00]} 55. Re7 {[%emt 0:00:00]} Rf2+ {[%emt 0:00:00]} 56. Kg1 {[%emt 0:00:00]} Kf3 {[%emt 0:00:00]} 57. Rf7+ {[%emt 0:00:00]} Ke2 {[%emt 0:00:00]} 58. Rg7 {[%emt 0:00:00]} Ke1 {[%emt 0:00:00]} 59. Rxg4 {[%emt 0:00:00]} e2 {[%emt 0:00:00]} 60. Rd4 {[%emt 0:00:00]} Rf5 {[%emt 0:00:00]} 61. Rd7 {[%emt 0:00:00]} Rg5+ {[%emt 0:00:00]} 62. Kh2 {[%emt 0:00:00]} Kf2 {[%emt 0:00:00]} 63. Rf7+ {[%emt 0:00:00]} Ke3 {[%emt 0:00:00]} 64. Re7+ {[%emt 0:00:00]} Kf3 {[%emt 0:00:00]} 65. Re8 {[%emt 0:00:00]} Rg4 {[%emt 0:00:00]} 0-1

[Event "WSCC 65 Open 2017"]
[Site "?"]
[Date "2017.11.12"]
[Round "6"]
[White "Rooze, Jan"]
[Black "Sorensen, Bent"]
[Result "1-0"]
[ECO "C16"]
[WhiteElo "2314"]
[BlackElo "2216"]
[PlyCount "80"]
[EventDate "2017.??.??"]
[EventType "swiss"]
[EventCountry "ITA"]
[SourceTitle "Acqui Terme"]
[TimeControl "40/5400+30:1800+30"]
[WhiteClock "0:11:39"]
[BlackClock "0:06:19"]

1. e4 {[%emt 0:00:00]} e6 {[%emt 0:00:04]} 2. d4 {[%emt 0:00:00]} d5 {[%emt 0:00:04]} 3. Nc3 Bb4 {[%emt 0:00:46]} 4. e5 {[%emt 0:00:00]} Ne7 {[%emt 0:00:43]} 5. a3 {[%emt 0:01:41]} Bxc3+ {[%emt 0:02:52]} 6. bxc3 {[%emt 0:00:07]} O-O 7. Bd3 {[%emt 0:08:53]} c5 {[%emt 0:05:55]} 8. Qh5 {[%emt 0:01:48]} g6 {[%emt 0:08:47]} 9. Qh6 {[%emt 0:02:05]} Kh8 {[%emt 0:02:05]} 10. Bg5 {[%emt 0:03:57]} Ng8 {[%emt 0:00:55]} 11. Bxd8 {[%emt 0:00:06]} Nxh6 {[%emt 0:00:08]} 12. Be7 {[%emt 0:00:03]} Re8 {[%emt 0:01:04]} 13. Bxc5 {[%emt 0:00:09]} b6 {[%emt 0:00:44]} 14. Bb4 {[%emt 0:18:56]} Ba6 {[%emt 0:00:52]} 15. a4 {[%emt 0:01:21]} Bxd3 {[%emt 0:00:55]} 16. cxd3 {[%emt 0:00:05]} Nc6 {[%emt 0:03:32]} 17. Ba3 {[%emt 0:00:34]} Na5 {[%emt 0:00:28]} 18. Rb1 {[%emt 0:01:38]} Rac8 {[%emt 0:02:29]} 19. Kd2 {[%emt 0:01:12]} Rc6 {[%emt 0:04:10]} 20. f3 {[%emt 0:05:05]} Nf5 {[%emt 0:02:22]} 21. Ne2 {[%emt 0:01:49]} Kg7 {[%emt 0:01:14]} 22. h4 {[%emt 0:01:49]} Ne7 {[%emt 0:09:59]} 23. h5 {[%emt 0:01:45]} g5 {[%emt 0:01:45]} 24. h6+ {[%emt 0:03:01]} Kg6 {[%emt 0:01:32]} 25. f4 {[%emt 0:04:41]} f6 {[%emt 0:10:45]} 26. exf6 {[%emt 0:12:51]} Kxf6 {[%emt 0:00:20]} 27. fxg5+ {[%emt 0:00:24]} Kxg5 {[%emt 0:00:30]} 28. Kc2 {[%emt 0:01:20]} Nf5 {[%emt 0:04:51]} 29. Bc1+ {[%emt 0:00:21]} Kg4 {[%emt 0:03:49]} 30. Rf1 {[%emt 0:02:09]} Rg8 {[%emt 0:05:20]} 31. Bd2 {[%emt 0:01:40]} Rcc8 {[%emt 0:07:32]} 32. Rf4+ {[%emt 0:04:38]} Kh5 {[%emt 0:08:49]} 33. g4+ {[%emt 0:08:26]} Rxg4 {[%emt 0:00:14]} 34. Rh1+ {[%emt 0:00:17]} Nh4 {[%emt 0:02:14]} 35. Be1 {[%emt 0:03:08]} Rxf4 {[%emt 0:02:41]} 36. Nxf4+ {[%emt 0:00:09]} Kg4 {[%emt 0:00:08]} 37. Rxh4+ {[%emt 0:00:06]} Kf3 {[%emt 0:00:14]} 38. Nxe6 {[%emt 0:01:19]} Re8 {[%emt 0:01:49]} 39. Ng5+ {[%emt 0:00:17]} Ke2 {[%emt 0:00:18]} 40. Bd2 {[%emt 0:00:31]} Rh8 {[%emt 0:31:12]} 1-0

[Event "WSCC 65 Open 2017"]
[Site "?"]
[Date "2017.11.12"]
[Round "6"]
[White "Stebbings, Anthony J"]
[Black "Trois, Francisco R T"]
[Result "0-1"]
[ECO "B13"]
[WhiteElo "2301"]
[BlackElo "2184"]
[PlyCount "52"]
[EventDate "2017.??.??"]
[EventType "swiss"]
[EventCountry "ITA"]
[SourceTitle "Acqui Terme"]
[TimeControl "40/5400+30:1800+30"]
[WhiteClock "0:26:28"]
[BlackClock "0:30:36"]

1. e4 {[%emt 0:00:00]} c6 {[%emt 0:01:42]} 2. d4 {[%emt 0:00:00]} d5 3. exd5 {[%emt 0:00:00]} cxd5 4. c4 {[%emt 0:00:00]} Nf6 {[%emt 0:03:32]} 5. Nc3 Nc6 {[%emt 0:09:04]} 6. Bg5 {[%emt 0:00:10]} Be6 {[%emt 0:02:53]} 7. a3 {[%emt 0:02:24]} g6 {[%emt 0:01:51]} 8. Bxf6 {[%emt 0:02:59]} exf6 {[%emt 0:00:33]} 9. Be2 {[%emt 0:12:22]} Qd7 {[%emt 0:04:47]} 10. c5 {[%emt 0:03:50]} Bg7 {[%emt 0:05:05]} 11. Bf3 {[%emt 0:02:21]} O-O {[%emt 0:00:23]} 12. Nge2 {[%emt 0:00:51]} Rfd8 {[%emt 0:18:49]} 13. O-O {[%emt 0:02:07]} g5 {[%emt 0:02:07]} 14. g3 {[%emt 0:02:31]} f5 {[%emt 0:02:36]} 15. Qd2 {[%emt 0:05:40]} Bf6 {[%emt 0:00:07]} 16. b4 {[%emt 0:01:14]} Kg7 {[%emt 0:01:07]} 17. Bg2 {[%emt 0:07:42]} h5 {[%emt 0:01:03]} 18. f4 {[%emt 0:01:36]} g4 {[%emt 0:00:14]} 19. Nd1 {[%emt 0:05:08]} b6 {[%emt 0:07:01]} 20. Ne3 {[%emt 0:15:28]} bxc5 {[%emt 0:01:46]} 21. bxc5 {[%emt 0:00:03]} Rab8 {[%emt 0:00:38]} 22. Rab1 {[%emt 0:00:18]} Ne7 {[%emt 0:06:23]} 23. Qa5 {[%emt 0:07:14]} Nc6 {[%emt 0:00:13]} 24. Qc3 {[%emt 0:01:03]} Ne7 {[%emt 0:00:35]} 25. Qa5 {[%emt 0:01:09]} Nc6 {[%emt 0:00:02]} 26. Qc3 {[%emt 0:00:22]} Ne7 {[%emt 0:00:23]} 0-1

[Event "WSCC 65 Open 2017"]
[Site "?"]
[Date "2017.11.12"]
[Round "6"]
[White "Shevelev, Arkady"]
[Black "Renman, Nils-Gustaf"]
[Result "1-0"]
[ECO "C07"]
[WhiteElo "2280"]
[BlackElo "2368"]
[PlyCount "103"]
[EventDate "2017.??.??"]
[EventType "swiss"]
[EventCountry "ITA"]
[SourceTitle "Acqui Terme"]
[TimeControl "40/5400+30:1800+30"]
[WhiteClock "1:01:08"]
[BlackClock "0:05:13"]

1. e4 {[%emt 0:00:00]} e6 {[%emt 0:00:08]} 2. d4 {[%emt 0:00:10]} d5 3. Nd2 {[%emt 0:00:21]} c5 {[%emt 0:00:31]} 4. exd5 {[%emt 0:00:19]} Qxd5 {[%emt 0:00:12]} 5. dxc5 Qxc5 6. Ngf3 {[%emt 0:01:25]} Nf6 {[%emt 0:02:54]} 7. Nb3 {[%emt 0:02:52]} Qc7 {[%emt 0:00:15]} 8. Bd3 {[%emt 0:03:24]} h6 {[%emt 0:12:05]} 9. Qe2 {[%emt 0:02:09]} Nc6 {[%emt 0:01:52]} 10. Nbd4 {[%emt 0:01:34]} Nxd4 {[%emt 0:00:33]} 11. Nxd4 {[%emt 0:00:12]} a6 {[%emt 0:01:14]} 12. Bd2 {[%emt 0:03:19]} Be7 {[%emt 0:05:35]} 13. O-O-O {[%emt 0:00:39]} Bd7 {[%emt 0:01:01]} 14. Kb1 {[%emt 0:02:01]} O-O-O {[%emt 0:05:57]} 15. Nb3 {[%emt 0:00:39]} Bc5 {[%emt 0:08:41]} 16. Bxa6 {[%emt 0:03:29]} Bb6 {[%emt 0:10:13]} 17. Bd3 {[%emt 0:00:35]} Nd5 {[%emt 0:00:40]} 18. c4 {[%emt 0:01:25]} Nf4 {[%emt 0:00:28]} 19. Bxf4 {[%emt 0:00:07]} Qxf4 {[%emt 0:00:03]} 20. c5 {[%emt 0:01:31]} Bc7 {[%emt 0:00:45]} 21. Be4 {[%emt 0:02:45]} f5 {[%emt 0:13:34]} 22. c6 {[%emt 0:00:23]} Qxe4+ {[%emt 0:01:46]} 23. Qxe4 {[%emt 0:00:10]} fxe4 {[%emt 0:00:06]} 24. cxd7+ {[%emt 0:00:04]} Rxd7 {[%emt 0:00:08]} 25. Rxd7 {[%emt 0:00:16]} Kxd7 {[%emt 0:00:07]} 26. Nc5+ {[%emt 0:00:08]} Kc6 {[%emt 0:00:26]} 27. Nxe4 {[%emt 0:00:17]} Rd8 {[%emt 0:03:31]} 28. Rc1+ {[%emt 0:01:42]} Kb6 {[%emt 0:00:14]} 29. h3 {[%emt 0:04:21]} Rd5 {[%emt 0:02:03]} 30. Nc3 {[%emt 0:01:36]} Rd4 {[%emt 0:01:56]} 31. Re1 {[%emt 0:00:19]} e5 {[%emt 0:01:17]} 32. Kc2 {[%emt 0:01:03]} Kc6 {[%emt 0:00:09]} 33. Re4 {[%emt 0:00:41]} Rd7 {[%emt 0:01:34]} 34. Rc4+ {[%emt 0:01:28]} Kb6 {[%emt 0:00:11]} 35. Ne4 {[%emt 0:02:08]} Bd6 {[%emt 0:01:45]} 36. Rc3 {[%emt 0:00:37]} Be7 {[%emt 0:00:21]} 37. Rb3+ {[%emt 0:00:46]} Ka6 {[%emt 0:03:26]} 38. Rd3 {[%emt 0:00:10]} Rc7+ {[%emt 0:00:16]} 39. Kd1 {[%emt 0:00:24]} Rc4 {[%emt 0:01:02]} 40. f3 {[%emt 0:00:22]} Rc6 {[%emt 0:31:09]} 41. Rd5 {[%emt 0:30:38]} Bf6 {[%emt 0:03:06]} 42. b3 {[%emt 0:00:26]} Kb6 {[%emt 0:01:13]} 43. Rd6 {[%emt 0:00:28]} Be7 {[%emt 0:00:41]} 44. Rxc6+ {[%emt 0:00:32]} Kxc6 {[%emt 0:00:09]} 45. Kc2 {[%emt 0:00:21]} Ba3 {[%emt 0:07:01]} 46. Kd3 {[%emt 0:02:24]} b5 {[%emt 0:00:21]} 47. Nc3 {[%emt 0:00:30]} Kc5 {[%emt 0:01:22]} 48. Ke4 {[%emt 0:01:29]} g6 {[%emt 0:04:02]} 49. Nd5 {[%emt 0:00:30]} Kd6 {[%emt 0:00:15]} 50. g4 {[%emt 0:01:08]} Bb2 {[%emt 0:04:06]} 51. a4 {[%emt 0:00:26]} bxa4 {[%emt 0:00:23]} 52. bxa4 {[%emt 0:00:09]} 1-0

[Event "WSCC 65 Open 2017"]
[Site "?"]
[Date "2017.11.12"]
[Round "6"]
[White "Malisov, Boris"]
[Black "Pushkov, Nikolai"]
[Result "1/2-1/2"]
[ECO "C00"]
[WhiteElo "2240"]
[BlackElo "2304"]
[PlyCount "103"]
[EventDate "2017.??.??"]
[EventType "swiss"]
[EventCountry "ITA"]
[SourceTitle "Acqui Terme"]
[TimeControl "40/5400+30:1800+30"]

1. e4 e6 2. d3 d5 3. Nd2 c5 4. g3 g6 5. Bg2 Bg7 6. Nh3 Ne7 7. O-O Nbc6 8. f4 O-O 9. g4 f5 10. gxf5 exf5 11. e5 Kh8 12. c3 a5 13. a4 Be6 14. Nf3 Qd7 15. Bd2 Rab8 16. Nhg5 h6 17. Nxe6 Qxe6 18. d4 cxd4 19. cxd4 b5 20. axb5 Rxb5 21. Bc3 Rfb8 22. Rf2 Bf8 23. Bf1 R5b6 24. Rg2 Qf7 25. Bd3 Nb4 26. Rxa5 Nxd3 27. Qxd3 Nc6 28. Ra1 Be7 29. h4 Nd8 30. Kf2 Ne6 31. Ke3 Kh7 32. Ra7 R8b7 33. Rxb7 Rxb7 34. Qa6 Bd8 35. Qc6 Qd7 36. Qxd7+ Rxd7 37. Rg1 Ra7 38. Rc1 Ra4 39. b3 Ra3 40. Rb1 Kg7 41. Bd2 Kf7 42. Kd3 Bb6 43. Be3 Ba5 44. Kc2 Bb4 45. Kb2 Ra6 46. Rh1 Ng7 47. Rh2 Rc6 48. Rc2 Rxc2+ 49. Kxc2 Ne6 50. Kd3 Ke7 51. Bc1 Kd7 52. Ke3 1/2-1/2

[Event "WSCC 65 Open 2017"]
[Site "?"]
[Date "2017.11.12"]
[Round "6"]
[White "Privara, Igor"]
[Black "Komljenovic, Davorin"]
[Result "0-1"]
[ECO "B22"]
[WhiteElo "2184"]
[BlackElo "2379"]
[PlyCount "82"]
[EventDate "2017.??.??"]
[EventType "swiss"]
[EventCountry "ITA"]
[SourceTitle "Acqui Terme"]
[TimeControl "40/5400+30:1800+30"]
[WhiteClock "0:02:30"]
[BlackClock "0:03:04"]

1. e4 c5 {[%emt 0:00:05]} 2. c3 {[%emt 0:00:13]} Nf6 {[%emt 0:00:06]} 3. e5 {[%emt 0:00:03]} Nd5 4. Nf3 {[%emt 0:00:37]} Nc6 {[%emt 0:00:20]} 5. Bc4 {[%emt 0:00:10]} Nb6 {[%emt 0:00:11]} 6. Bb3 {[%emt 0:00:06]} c4 {[%emt 0:00:56]} 7. Bc2 g6 {[%emt 0:26:39]} 8. Qe2 {[%emt 0:05:08]} Bg7 {[%emt 0:01:58]} 9. Na3 {[%emt 0:03:19]} O-O {[%emt 0:00:40]} 10. O-O {[%emt 0:02:46]} d5 {[%emt 0:05:10]} 11. exd6 {[%emt 0:02:36]} exd6 {[%emt 0:00:05]} 12. Nxc4 {[%emt 0:06:32]} Re8 {[%emt 0:00:51]} 13. Ne3 {[%emt 0:02:13]} f5 {[%emt 0:02:11]} 14. Bb3+ {[%emt 0:13:38]} Kh8 {[%emt 0:00:05]} 15. Qd1 {[%emt 0:04:32]} f4 {[%emt 0:02:26]} 16. Nd5 {[%emt 0:01:23]} Nxd5 {[%emt 0:21:48]} 17. Bxd5 {[%emt 0:00:53]} g5 {[%emt 0:00:19]} 18. Re1 {[%emt 0:04:07]} Rxe1+ {[%emt 0:00:21]} 19. Qxe1 {[%emt 0:03:58]} Bd7 {[%emt 0:00:48]} 20. h3 {[%emt 0:03:19]} Qf6 {[%emt 0:00:36]} 21. d4 {[%emt 0:02:39]} h5 {[%emt 0:01:11]} 22. Nh2 {[%emt 0:01:36]} g4 {[%emt 0:00:40]} 23. hxg4 {[%emt 0:07:23]} hxg4 {[%emt 0:00:04]} 24. Qd1 {[%emt 0:00:29]} Qf5 {[%emt 0:01:49]} 25. Bb3 {[%emt 0:01:23]} Rf8 {[%emt 0:03:18]} 26. Nf1 {[%emt 0:07:09]} Rf6 {[%emt 0:02:04]} 27. Bc2 {[%emt 0:03:47]} Qh5 {[%emt 0:00:04]} 28. Nh2 {[%emt 0:01:48]} Ne7 {[%emt 0:14:00]} 29. c4 {[%emt 0:09:36]} Bh6 {[%emt 0:05:56]} 30. d5 {[%emt 0:05:40]} Bg7 {[%emt 0:02:22]} 31. Bd2 {[%emt 0:02:01]} b6 {[%emt 0:04:25]} 32. Qe2 {[%emt 0:02:47]} Rf7 {[%emt 0:01:17]} 33. Rb1 {[%emt 0:02:06]} Ng6 {[%emt 0:01:18]} 34. Qe4 {[%emt 0:00:30]} Bf5 {[%emt 0:00:50]} 35. Qe8+ {[%emt 0:00:13]} Rf8 {[%emt 0:00:03]} 36. Qa4 {[%emt 0:00:06]} g3 {[%emt 0:02:07]} 37. fxg3 {[%emt 0:00:41]} Bd4+ {[%emt 0:00:11]} 38. Kf1 {[%emt 0:00:29]} Bxc2 {[%emt 0:00:25]} 39. Qxc2 {[%emt 0:01:07]} fxg3+ {[%emt 0:00:04]} 40. Nf3 {[%emt 0:00:40]} Rxf3+ {[%emt 0:30:08]} 41. gxf3 {[%emt 0:30:17]} Qxf3+ {[%emt 0:00:05] Qd3} 0-1

[Event "WSCC 65 Open 2017"]
[Site "?"]
[Date "2017.11.14"]
[Round "7"]
[White "Bogdanov, Valentin"]
[Black "Malisov, Boris"]
[Result "0-1"]
[ECO "D96"]
[WhiteElo "2381"]
[BlackElo "2240"]
[PlyCount "136"]
[EventDate "2017.??.??"]
[EventType "swiss"]
[EventCountry "ITA"]
[SourceTitle "Acqui Terme"]
[TimeControl "40/5400+30:1800+30"]

1. d4 d5 2. c4 c6 3. Nc3 Nf6 4. Nf3 g6 5. cxd5 cxd5 6. Bf4 Bg7 7. e3 O-O 8. Be2 Nc6 9. Ne5 Qb6 10. Nxc6 bxc6 11. Qd2 a5 12. Na4 Qb4 13. Nc5 Nd7 14. Nxd7 Bxd7 15. a3 Qb6 16. O-O Rfe8 17. b4 Bf8 18. bxa5 Qxa5 19. Qxa5 Rxa5 20. Bc7 Ra7 21. Bb6 Rb7 22. Bc5 e5 23. Ba6 Rb2 24. Rfb1 Rxb1+ 25. Rxb1 exd4 26. Bxf8 Kxf8 27. exd4 Ke7 28. a4 Kd6 29. a5 Ra8 30. Rb6 Bc8 31. Bxc8 Rxc8 32. a6 Rc7 33. Rb1 Ra7 34. Ra1 Kc7 35. Kf1 Kb6 36. Rb1+ Kxa6 37. Ke2 Rb7 38. Ra1+ Kb6 39. Kd3 Kc7 40. Kc3 Kd6 41. h4 h5 42. f3 f6 43. Ra8 Ke6 44. Rg8 Kf5 45. g4+ hxg4 46. fxg4+ Kxg4 47. Rxg6+ Kf5 48. Rg1 Rh7 49. Rf1+ Ke6 50. Re1+ Kd6 51. Rf1 Rh6 52. Kd3 Ke6 53. Rf4 Rh5 54. Ke3 f5 55. Kd3 Rh8 56. Ke3 Kf6 57. Kf3 Re8 58. Kf2 Rc8 59. Ke3 c5 60. dxc5 Rxc5 61. Kd3 Ra5 62. Rf1 Ra4 63. Rh1 Kg6 64. h5+ Kh6 65. Ke3 Re4+ 66. Kf3 d4 67. Rh2 d3 68. Rh1 d2 0-1

[Event "WSCC 65 Open 2017"]
[Site "?"]
[Date "2017.11.14"]
[Round "7"]
[White "Komljenovic, Davorin"]
[Black "Barle, Janez"]
[Result "1-0"]
[ECO "D31"]
[WhiteElo "2379"]
[BlackElo "2261"]
[PlyCount "83"]
[EventDate "2017.??.??"]
[EventType "swiss"]
[EventCountry "ITA"]
[SourceTitle "Acqui Terme"]
[TimeControl "40/5400+30:1800+30"]

1. d4 d5 2. c4 e6 3. Nc3 Bb4 4. cxd5 exd5 5. Nf3 Ne7 6. Qb3 c5 7. dxc5 Bxc5 8. e4 O-O 9. exd5 Re8 10. Be2 Na6 11. O-O Nc7 12. Rd1 Bd6 13. Ng5 Ng6 14. Nge4 b6 15. Bg5 f6 16. Be3 Kh8 17. f3 f5 18. Nxd6 Qxd6 19. Nb5 Nxb5 20. Bxb5 Bd7 21. Bf2 Rac8 22. Bf1 Re7 23. a4 Be8 24. a5 b5 25. a6 Rb8 26. Qd3 f4 27. Qd4 {[%emt 1:43:30]} Bf7 28. b4 Rd7 29. Qc5 Qe5 30. Bd4 Qg5 31. d6 Qxc5 32. bxc5 Kg8 33. Bf2 Ne5 34. Rd4 g5 35. Rb1 g4 36. Rxb5 Rc8 37. Re4 Ng6 38. fxg4 Bd5 39. Reb4 Bc6 40. Rb8 Rdd8 41. Rxc8 Rxc8 42. Rb7 1-0

[Event "WSCC 65 Open 2017"]
[Site "?"]
[Date "2017.11.14"]
[Round "7"]
[White "Pushkov, Nikolai"]
[Black "Vasiukov, Evgeni"]
[Result "1/2-1/2"]
[ECO "C42"]
[WhiteElo "2304"]
[BlackElo "2404"]
[PlyCount "21"]
[EventDate "2017.??.??"]
[EventType "swiss"]
[EventCountry "ITA"]
[SourceTitle "Acqui Terme"]
[TimeControl "40/5400+30:1800+30"]
[WhiteClock "1:33:31"]
[BlackClock "1:25:51"]

1. e4 {[%emt 0:00:00]} e5 {[%emt 0:00:31]} 2. Nf3 {[%emt 0:00:00]} Nf6 {[%emt 0:00:17]} 3. Nxe5 {[%emt 0:00:06]} d6 {[%emt 0:00:12]} 4. Nf3 {[%emt 0:00:07]} Nxe4 {[%emt 0:00:08]} 5. Qe2 {[%emt 0:00:18]} Qe7 {[%emt 0:00:18]} 6. d3 {[%emt 0:00:10]} Nf6 {[%emt 0:00:18]} 7. Bg5 {[%emt 0:00:17]} Qxe2+ {[%emt 0:01:01]} 8. Bxe2 {[%emt 0:00:08]} Be7 {[%emt 0:00:44]} 9. Nc3 {[%emt 0:00:16]} h6 {[%emt 0:03:35]} 10. Bf4 {[%emt 0:00:20]} Nc6 {[%emt 0:02:35]} 11. h3 {[%emt 0:00:17]} 1/2-1/2

[Event "WSCC 65 Open 2017"]
[Site "?"]
[Date "2017.11.14"]
[Round "7"]
[White "Primbetov, Marat"]
[Black "Rooze, Jan"]
[Result "1/2-1/2"]
[ECO "B34"]
[WhiteElo "2222"]
[BlackElo "2314"]
[PlyCount "104"]
[EventDate "2017.??.??"]
[EventType "swiss"]
[EventCountry "ITA"]
[SourceTitle "Acqui Terme"]
[TimeControl "40/5400+30:1800+30"]
[WhiteClock "0:21:03"]
[BlackClock "0:06:43"]

1. e4 {[%emt 0:00:00]} c5 {[%emt 0:00:04]} 2. Nf3 {[%emt 0:00:14]} Nc6 {[%emt 0:00:05]} 3. d4 {[%emt 0:00:45]} cxd4 {[%emt 0:00:07]} 4. Nxd4 {[%emt 0:00:09]} g6 {[%emt 0:00:04]} 5. Nc3 {[%emt 0:02:52]} Bg7 {[%emt 0:00:23]} 6. Be3 {[%emt 0:00:13]} Nf6 {[%emt 0:00:06]} 7. f3 {[%emt 0:08:52]} Qb6 {[%emt 0:12:21]} 8. Ncb5 {[%emt 0:36:52]} Qa5+ {[%emt 0:05:28]} 9. c3 {[%emt 0:06:13]} O-O {[%emt 0:01:59]} 10. Nb3 {[%emt 0:00:42]} Qd8 {[%emt 0:00:37]} 11. c4 {[%emt 0:00:17]} b6 {[%emt 0:11:54]} 12. Qd2 {[%emt 0:00:46]} Bb7 {[%emt 0:04:47]} 13. Be2 {[%emt 0:00:33]} d6 {[%emt 0:04:30]} 14. O-O {[%emt 0:00:26]} Nd7 {[%emt 0:00:49]} 15. Rfd1 {[%emt 0:01:44]} Rc8 {[%emt 0:06:26]} 16. Rac1 {[%emt 0:00:28]} a6 {[%emt 0:03:40]} 17. Nc3 {[%emt 0:00:56]} Nc5 {[%emt 0:03:07]} 18. Nd4 {[%emt 0:00:57]} Nxd4 {[%emt 0:00:39]} 19. Bxd4 {[%emt 0:00:02]} Bxd4+ {[%emt 0:00:12]} 20. Qxd4 {[%emt 0:00:08]} Qc7 {[%emt 0:02:32]} 21. Qe3 {[%emt 0:04:28]} Qb8 {[%emt 0:04:36]} 22. h4 {[%emt 0:00:59]} Nd7 {[%emt 0:09:46]} 23. h5 {[%emt 0:00:39]} Rc5 {[%emt 0:01:49]} 24. f4 {[%emt 0:01:31]} gxh5 {[%emt 0:06:24]} 25. b4 {[%emt 0:00:26]} Rc7 {[%emt 0:00:18]} 26. e5 {[%emt 0:05:23]} dxe5 {[%emt 0:01:07]} 27. fxe5 {[%emt 0:00:09]} f6 {[%emt 0:03:03]} 28. exf6 {[%emt 0:01:52]} Nxf6 {[%emt 0:00:31]} 29. Qxb6 {[%emt 0:00:44]} Kh8 {[%emt 0:02:08]} 30. Qd4 {[%emt 0:01:46]} Rd7 {[%emt 0:05:36]} 31. Qe3 {[%emt 0:13:40]} Rg8 {[%emt 0:02:47]} 32. Nd5 {[%emt 0:03:34]} Bxd5 {[%emt 0:00:59]} 33. cxd5 {[%emt 0:00:37]} Nxd5 {[%emt 0:03:02]} 34. Qd4+ {[%emt 0:01:08]} Nf6 {[%emt 0:00:05]} 35. Qe3 {[%emt 0:01:45]} Rxd1+ {[%emt 0:01:21]} 36. Rxd1 {[%emt 0:00:01]} Qxb4 {[%emt 0:00:15]} 37. Bxa6 {[%emt 0:00:50]} Rxg2+ {[%emt 0:01:32]} 38. Kxg2 {[%emt 0:01:09]} Qg4+ {[%emt 0:00:07]} 39. Kf2 {[%emt 0:02:11]} Qxd1 {[%emt 0:01:05]} 40. Qxe7 {[%emt 0:00:48]} Qd4+ {[%emt 0:32:44]} 41. Kf3 {[%emt 0:06:40]} Qg4+ {[%emt 0:00:00]} 42. Kf2 {[%emt 0:00:18]} Ne4+ {[%emt 0:00:00]} 43. Ke3 {[%emt 0:00:59]} Qg3+ {[%emt 0:00:00]} 44. Kd4 {[%emt 0:00:37]} Qc3+ {[%emt 0:00:00]} 45. Kd5 {[%emt 0:00:29]} Nf6+ {[%emt 0:00:00]} 46. Ke6 {[%emt 0:02:15]} Ng8 {[%emt 0:00:00]} 47. Qd6 {[%emt 0:02:34]} Qf6+ {[%emt 0:00:00]} 48. Kd7 {[%emt 0:00:44]} Qf7+ {[%emt 0:00:00]} 49. Kd8 {[%emt 0:01:11]} Nf6 {[%emt 0:00:00]} 50. Bc4 {[%emt 0:01:37]} Qxc4 {[%emt 0:00:00]} 51. Qxf6+ {[%emt 0:00:12]} Kg8 {[%emt 0:00:00]} 52. Qg5+ {[%emt 0:00:32]} Kh8 {[%emt 0:00:42]} 1/2-1/2